[Event "Mistrovství Čech mládeže 2023 - HD16"]
[Site "Harrachov, Czech Republic"]
[Date "2023.10.24"]
[Round "5.14"]
[White "Ocelák, David"]
[Black "Mikhno, Artem"]
[Result "1/2-1/2"]
[TimeControl "90m + 30s"]
[WhiteElo "1580"]
[BlackElo "1781"]

1. e4 {[%clk 01:30:53]} {[%emt 00:00:06]} c6 {[%clk 01:30:30]} {[%emt
00:00:31]} 2. Nc3 {[%clk 01:30:56]} {[%emt 00:00:26]} d5 {[%clk 01:30:38]}
{[%emt 00:00:22]} 3. Qf3 {[%clk 01:30:35]} {[%emt 00:00:51]} d4 {[%clk
01:25:15]} {[%emt 00:05:54]} 4. Bc4 {[%clk 01:30:06]} {[%emt 00:00:58]} e6
{[%clk 01:18:24]} {[%emt 00:07:22]} 5. Nce2 {[%clk 01:29:40]} {[%emt 00:00:56]}
c5 {[%clk 01:17:11]} {[%emt 00:01:43]} 6. d3 {[%clk 01:29:10]} {[%emt
00:01:00]} Nc6 {[%clk 01:16:14]} {[%emt 00:01:28]} 7. Qg3 {[%clk 01:27:21]}
{[%emt 00:02:18]} h6 {[%clk 01:15:52]} {[%emt 00:00:53]} 8. f4 {[%clk
01:25:05]} {[%emt 00:02:45]} Qc7 {[%clk 01:15:20]} {[%emt 00:01:02]} 9. Nf3
{[%clk 01:23:46]} {[%emt 00:01:48]} Bd7 {[%clk 01:15:14]} {[%emt 00:00:37]} 10.
Bd2 {[%clk 01:21:26]} {[%emt 00:02:50]} Nge7 {[%clk 01:12:08]} {[%emt
00:03:36]} 11. c3 {[%clk 01:09:00]} {[%emt 00:12:56]} g6 {[%clk 01:02:20]}
{[%emt 00:10:19]} 12. cxd4 {[%clk 00:57:36]} {[%emt 00:11:54]} cxd4 {[%clk
01:01:17]} {[%emt 00:01:33]} 13. Nexd4 {[%clk 00:56:38]} {[%emt 00:01:28]} Nxd4
{[%clk 00:59:45]} {[%emt 00:02:02]} 14. Nxd4 {[%clk 00:55:52]} {[%emt
00:01:16]} Bg7 {[%clk 00:57:58]} {[%emt 00:02:18]} 15. Bc3 {[%clk 00:55:09]}
{[%emt 00:01:12]} e5 {[%clk 00:57:21]} {[%emt 00:01:07]} 16. Nb5 {[%clk
00:50:39]} {[%emt 00:04:59]} Qb6 {[%clk 00:57:12]} {[%emt 00:00:40]} 17. Qf2
{[%clk 00:50:15]} {[%emt 00:00:54]} Bxb5 {[%clk 00:45:43]} {[%emt 00:11:59]} 18.
Qxb6 {[%clk 00:50:11]} {[%emt 00:00:33]} axb6 {[%clk 00:46:02]} {[%emt
00:00:12]} 19. Bxb5+ {[%clk 00:50:21]} {[%emt 00:00:19]} Nc6 {[%clk 00:46:24]}
{[%emt 00:00:08]} 20. Bxc6+ {[%clk 00:47:24]} {[%emt 00:03:28]} bxc6 {[%clk
00:46:40]} {[%emt 00:00:14]} 21. Bxe5 {[%clk 00:47:40]} {[%emt 00:00:13]} Bxe5
{[%clk 00:46:27]} {[%emt 00:00:43]} 22. fxe5 {[%clk 00:48:05]} {[%emt
00:00:05]} c5 {[%clk 00:46:33]} {[%emt 00:00:24]} 23. Rf1 {[%clk 00:47:56]}
{[%emt 00:00:38]} Ke7 {[%clk 00:46:23]} {[%emt 00:00:41]} 24. a3 {[%clk
00:47:14]} {[%emt 00:01:12]} Rhd8 {[%clk 00:45:46]} {[%emt 00:01:07]} 25. Rd1
{[%clk 00:46:28]} {[%emt 00:01:15]} Rd4 {[%clk 00:44:41]} {[%emt 00:01:36]} 26.
Ke2 {[%clk 00:36:13]} {[%emt 00:10:45]} c4 {[%clk 00:38:46]} {[%emt 00:06:25]}
27. Rf6 {[%clk 00:33:53]} {[%emt 00:02:49]} cxd3+ {[%clk 00:35:06]} {[%emt
00:04:10]} 28. Ke3 {[%clk 00:33:40]} {[%emt 00:00:43]} Raa4 {[%clk 00:35:19]}
{[%emt 00:00:18]} 29. Rxd3 {[%clk 00:26:13]} {[%emt 00:07:56]} Rxe4+ {[%clk
00:35:27]} {[%emt 00:00:23]} 30. Kd2 {[%clk 00:26:15]} {[%emt 00:00:27]} b5
{[%clk 00:29:10]} {[%emt 00:06:49]} 31. Rb6 {[%clk 00:23:26]} {[%emt 00:03:18]}
Rxe5 {[%clk 00:28:49]} {[%emt 00:00:51]} 32. Re3 {[%clk 00:23:16]} {[%emt
00:00:40]} Rd4+ {[%clk 00:27:23]} {[%emt 00:01:57]} 33. Ke2 {[%clk 00:22:59]}
{[%emt 00:00:47]} Rdd5 {[%clk 00:27:18]} {[%emt 00:00:35]} 34. Rxe5+ {[%clk
00:22:19]} 1/2-1/2

[Event "Mistrovství Čech mládeže 2023 - HD16"]
[Site "Harrachov, Czech Republic"]
[Date "2023.10.24"]
[Round "5.15"]
[White "Bohatyrov, Mykola"]
[Black "Markina, Sofiia"]
[Result "1-0"]
[TimeControl "90m + 30s"]
[WhiteElo "1725"]
[BlackElo "1564"]

1. d4 {[%emt 00:00:02]} d5 {[%clk 01:30:53]} {[%emt 00:00:05]} 2. c4 {[%clk
01:31:26]} {[%emt 00:00:04]} e6 {[%clk 01:31:19]} {[%emt 00:00:04]} 3. Nc3
{[%clk 01:31:53]} {[%emt 00:00:03]} Nf6 {[%clk 01:31:18]} {[%emt 00:00:31]} 4.
cxd5 {[%emt 00:00:13]} exd5 {[%clk 01:31:40]} {[%emt 00:00:06]} 5. Bg5 {[%clk
01:32:20]} {[%emt 00:00:22]} Be7 {[%clk 01:31:59]} {[%emt 00:00:11]} 6. Nf3
{[%clk 01:32:17]} {[%emt 00:00:33]} O-O {[%clk 01:31:49]} {[%emt 00:00:40]} 7.
e3 {[%clk 01:32:42]} {[%emt 00:00:05]} c6 {[%clk 01:31:20]} {[%emt 00:00:58]} 8.
Qc2 {[%clk 01:32:06]} {[%emt 00:01:06]} Nbd7 {[%clk 01:30:07]} {[%emt
00:01:43]} 9. Bd3 {[%clk 01:31:19]} {[%emt 00:01:17]} Re8 {[%clk 01:21:49]}
{[%emt 00:08:48]} 10. O-O {[%clk 01:31:02]} {[%emt 00:00:47]} h6 {[%clk
01:21:29]} {[%emt 00:00:50]} 11. Bh4 {[%clk 01:31:17]} {[%emt 00:00:14]} Bd6
{[%clk 01:20:13]} {[%emt 00:01:47]} 12. Rfe1 {[%clk 01:30:25]} {[%emt
00:01:22]} Qc7 {[%clk 01:10:10]} {[%emt 00:10:33]} 13. e4 {[%clk 01:28:48]}
{[%emt 00:02:06]} dxe4 {[%clk 01:04:51]} {[%emt 00:05:49]} 14. Nxe4 {[%clk
01:29:14]} {[%emt 00:00:04]} Nxe4 {[%clk 01:02:22]} {[%emt 00:02:59]} 15. Bxe4
{[%clk 01:29:16]} {[%emt 00:00:28]} Kh8 {[%clk 01:00:06]} {[%emt 00:02:45]} 16.
Bd3 {[%clk 01:25:48]} {[%emt 00:03:58]} Rf8 {[%clk 00:58:09]} {[%emt 00:02:27]}
17. Be7 {[%clk 01:25:32]} {[%emt 00:00:46]} Bxe7 {[%clk 00:57:25]} {[%emt
00:01:15]} 18. Rxe7 {[%clk 01:25:55]} {[%emt 00:00:07]} Qd6 {[%clk 00:55:59]}
{[%emt 00:01:55]} 19. Rae1 {[%clk 01:24:57]} {[%emt 00:01:28]} Nf6 {[%clk
00:54:43]} {[%emt 00:01:46]} 20. Bc4 {[%emt 00:15:17]} Nd5 {[%emt 00:04:46]} 21.
Bxd5 {[%clk 01:09:07]} {[%emt 00:01:33]} Qxd5 {[%clk 00:47:17]} {[%emt
00:03:40]} 22. Ne5 {[%clk 01:07:29]} {[%emt 00:02:08]} Kg8 {[%clk 00:44:51]}
{[%emt 00:02:57]} 23. Qe4 {[%clk 00:59:12]} {[%emt 00:08:48]} Qd6 {[%clk
00:40:17]} {[%emt 00:05:04]} 24. Nd3 {[%clk 00:51:51]} {[%emt 00:07:51]} b6
{[%clk 00:36:14]} {[%emt 00:04:33]} 25. Qe5 {[%clk 00:50:27]} {[%emt 00:01:54]}
Qxe5 {[%clk 00:30:57]} {[%emt 00:05:48]} 26. Nxe5 {[%clk 00:50:18]} {[%emt
00:00:38]} Be6 {[%clk 00:26:55]} {[%emt 00:04:32]} 27. b3 {[%clk 00:44:23]}
{[%emt 00:06:25]} Rfc8 {[%clk 00:23:10]} {[%emt 00:04:14]} 28. Rd1 {[%clk
00:42:01]} {[%emt 00:02:53]} a5 {[%clk 00:22:07]} {[%emt 00:01:33]} 29. Rb7
{[%clk 00:41:47]} {[%emt 00:00:44]} b5 {[%clk 00:22:08]} {[%emt 00:00:30]} 30.
Rc1 {[%clk 00:40:44]} {[%emt 00:01:33]} Ra6 {[%clk 00:22:00]} {[%emt 00:00:37]}
31. Nd3 {[%clk 00:40:24]} {[%emt 00:00:50]} Bd5 {[%clk 00:19:18]} {[%emt
00:03:12]} 32. Rxb5 {[%clk 00:29:50]} {[%emt 00:11:04]} Be4 {[%clk 00:17:16]}
{[%emt 00:02:32]} 33. Ne5 {[%clk 00:28:56]} {[%emt 00:01:24]} Rd8 {[%clk
00:17:18]} {[%emt 00:00:28]} 34. Rbc5 {[%clk 00:27:26]} {[%emt 00:02:00]} Rxd4
{[%clk 00:16:56]} {[%emt 00:00:53]} 35. f3 {[%clk 00:25:32]} {[%emt 00:02:24]}
Bd5 {[%clk 00:16:52]} {[%emt 00:00:33]} 36. Nc4 {[%clk 00:24:20]} {[%emt
00:01:43]} Bxc4 {[%clk 00:15:23]} {[%emt 00:01:59]} 37. R5xc4 {[%clk 00:24:40]}
{[%emt 00:00:10]} Rd2 {[%clk 00:15:14]} {[%emt 00:00:38]} 38. R1c2 {[%clk
00:24:44]} {[%emt 00:00:27]} Rxc2 {[%clk 00:15:23]} {[%emt 00:00:21]} 39. Rxc2
{[%clk 00:25:10]} {[%emt 00:00:04]} a4 {[%clk 00:15:37]} {[%emt 00:00:16]} 40.
b4 {[%clk 00:24:36]} {[%emt 00:01:05]} a3 {[%clk 00:15:52]} {[%emt 00:00:14]}
41. Rc3 {[%clk 00:23:44]} {[%emt 00:01:21]} Ra4 {[%clk 00:15:44]} {[%emt
00:00:38]} 42. Rb3 {[%clk 00:24:05]} {[%emt 00:00:10]} Kf8 {[%clk 00:15:59]}
{[%emt 00:00:15]} 43. Kf2 {[%clk 00:24:15]} {[%emt 00:00:21]} Ke7 {[%clk
00:16:20]} {[%emt 00:00:09]} 44. Ke3 {[%clk 00:24:38]} {[%emt 00:00:06]} Kd7
{[%clk 00:16:18]} {[%emt 00:00:33]} 45. Kd4 {[%clk 00:24:24]} {[%emt 00:00:45]}
Kd6 {[%clk 00:15:50]} {[%emt 00:00:58]} 46. Kc4 {[%clk 00:24:10]} {[%emt
00:00:43]} f6 {[%clk 00:15:25]} {[%emt 00:00:55]} 47. Rd3+ {[%clk 00:22:11]}
{[%emt 00:02:29]} Kc7 {[%clk 00:15:47]} {[%emt 00:00:08]} 48. Kc5 {[%clk
00:21:11]} {[%emt 00:01:30]} Ra6 {[%clk 00:16:00]} {[%emt 00:00:16]} 49. g3
{[%clk 00:17:54]} {[%emt 00:03:47]} Ra4 {[%clk 00:15:38]} {[%emt 00:00:51]} 50.
Rd6 {[%clk 00:17:11]} {[%emt 00:01:14]} Rxb4 {[%clk 00:14:42]} {[%emt
00:01:27]} 51. Rxc6+ {[%clk 00:17:36]} {[%emt 00:00:05]} Kb7 {[%clk 00:15:00]}
{[%emt 00:00:12]} 52. Kxb4 {[%clk 00:17:57]} {[%emt 00:00:09]} Kxc6 {[%clk
00:15:27]} {[%emt 00:00:04]} 53. Kxa3 {[%clk 00:18:22]} {[%emt 00:00:04]} Kb5
{[%clk 00:15:41]} {[%emt 00:00:15]} 54. Kb3 {[%clk 00:18:48]} {[%emt 00:00:04]}
Ka5 {[%clk 00:16:03]} {[%emt 00:00:08]} 55. Kc4 {[%clk 00:19:06]} {[%emt
00:00:12]} 1-0

[Event "Mistrovství Čech mládeže 2023 - HD16"]
[Site "Harrachov, Czech Republic"]
[Date "2023.10.24"]
[Round "5.16"]
[White "Sochor, Antonín"]
[Black "Meca, Viktor"]
[Result "0-1"]
[TimeControl "90m + 30s"]
[WhiteElo "1702"]
[BlackElo "1559"]

1. d4 {[%emt 00:00:07]} d5 {[%clk 01:30:43]} {[%emt 00:00:13]} 2. Bf4 {[%clk
01:31:16]} {[%emt 00:00:09]} Nf6 {[%clk 01:31:01]} {[%emt 00:00:12]} 3. e3
{[%clk 01:31:33]} {[%emt 00:00:14]} Bf5 {[%clk 01:31:19]} {[%emt 00:00:10]} 4.
Bd3 {[%clk 01:31:57]} {[%emt 00:00:07]} Bxd3 {[%clk 01:31:37]} {[%emt
00:00:11]} 5. Qxd3 {[%clk 01:32:13]} {[%emt 00:00:15]} c6 {[%clk 01:31:48]}
{[%emt 00:00:18]} 6. Nf3 {[%clk 01:32:33]} {[%emt 00:00:11]} e6 {[%clk
01:32:05]} {[%emt 00:00:13]} 7. Nbd2 {[%clk 01:32:43]} {[%emt 00:00:20]} Be7
{[%clk 01:31:58]} {[%emt 00:00:34]} 8. O-O {[%clk 01:33:00]} {[%emt 00:00:16]}
O-O {[%clk 01:32:15]} {[%emt 00:00:13]} 9. Bg3 {[%clk 01:33:19]} {[%emt
00:00:11]} Nbd7 {[%clk 01:31:43]} {[%emt 00:01:01]} 10. c3 {[%clk 01:33:19]}
{[%emt 00:00:32]} Qb6 {[%clk 01:27:54]} {[%emt 00:04:18]} 11. c4 {[%clk
01:32:42]} {[%emt 00:01:09]} Qa6 {[%clk 01:27:25]} {[%emt 00:00:59]} 12. Qb3
{[%clk 01:32:14]} {[%emt 00:00:56]} Rac8 {[%clk 01:23:15]} {[%emt 00:04:40]} 13.
Ne5 {[%clk 01:30:01]} {[%emt 00:02:44]} Nxe5 {[%clk 01:20:59]} {[%emt
00:02:46]} 14. Bxe5 {[%clk 01:30:12]} {[%emt 00:00:19]} Nd7 {[%clk 01:21:11]}
{[%emt 00:00:17]} 15. Bg3 {[%clk 01:30:20]} {[%emt 00:00:22]} c5 {[%clk
01:13:48]} {[%emt 00:07:54]} 16. cxd5 {[%clk 01:28:10]} {[%emt 00:02:39]} c4
{[%clk 01:14:10]} {[%emt 00:00:09]} 17. Qc2 {[%clk 01:28:30]} {[%emt 00:00:10]}
exd5 {[%clk 01:14:31]} {[%emt 00:00:09]} 18. e4 {[%clk 01:28:37]} {[%emt
00:00:24]} Rfd8 {[%clk 01:13:17]} {[%emt 00:01:42]} 19. Rfe1 {[%clk 01:26:46]}
{[%emt 00:02:23]} b5 {[%clk 01:06:02]} {[%emt 00:07:44]} 20. e5 {[%clk
01:24:20]} {[%emt 00:02:56]} b4 {[%clk 00:58:06]} {[%emt 00:08:26]} 21. f4
{[%clk 01:22:08]} {[%emt 00:02:43]} c3 {[%clk 00:49:37]} {[%emt 00:08:59]} 22.
Nf3 {[%clk 01:21:43]} {[%emt 00:00:55]} Qb6 {[%clk 00:45:25]} {[%emt 00:04:43]}
23. f5 {[%clk 01:20:13]} {[%emt 00:02:00]} Nf8 {[%clk 00:44:28]} {[%emt
00:01:23]} 24. b3 {[%clk 01:20:13]} {[%emt 00:00:33]} a5 {[%clk 00:41:29]}
{[%emt 00:03:29]} 25. Rad1 {[%clk 01:19:49]} {[%emt 00:00:54]} a4 {[%clk
00:39:50]} {[%emt 00:02:10]} 26. f6 {[%clk 01:18:30]} {[%emt 00:01:48]} gxf6
{[%clk 00:39:41]} {[%emt 00:00:39]} 27. Nh4 {[%clk 01:17:13]} {[%emt 00:01:47]}
fxe5 {[%clk 00:36:17]} {[%emt 00:03:55]} 28. Nf5 {[%clk 01:16:40]} {[%emt
00:01:03]} Bf6 {[%clk 00:32:11]} {[%emt 00:04:33]} 29. Bxe5 {[%clk 01:16:10]}
{[%emt 00:01:03]} Bxe5 {[%clk 00:31:29]} {[%emt 00:01:12]} 30. Rxe5 {[%clk
01:16:28]} {[%emt 00:00:12]} Ng6 {[%clk 00:31:14]} {[%emt 00:00:44]} 31. Re3
{[%clk 01:13:47]} {[%emt 00:03:11]} axb3 {[%clk 00:28:42]} {[%emt 00:03:04]} 32.
axb3 {[%clk 01:13:46]} {[%emt 00:00:31]} Re8 {[%clk 00:27:00]} {[%emt
00:02:09]} 33. Rg3 {[%clk 01:13:41]} {[%emt 00:00:37]} Re4 {[%clk 00:24:50]}
{[%emt 00:02:37]} 34. Rf1 {[%clk 01:12:54]} {[%emt 00:01:20]} Rc7 {[%clk
00:22:05]} {[%emt 00:03:15]} 35. h4 {[%clk 01:10:28]} {[%emt 00:02:57]} Kf8
{[%clk 00:18:02]} {[%emt 00:04:33]} 36. h5 {[%clk 01:07:39]} {[%emt 00:03:19]}
Ne7 {[%clk 00:18:15]} {[%emt 00:00:17]} 37. Ng7 {[%clk 00:56:46]} {[%emt
00:11:23]} Qxd4+ {[%clk 00:18:21]} {[%emt 00:00:25]} 38. Rf2 {[%clk 00:56:29]}
{[%emt 00:00:47]} Rf4 {[%clk 00:15:16]} {[%emt 00:03:34]} 39. Rgf3 {[%clk
00:49:12]} {[%emt 00:07:47]} Rxf3 {[%clk 00:15:20]} {[%emt 00:00:25]} 40. gxf3
{[%clk 00:48:45]} {[%emt 00:00:57]} Qxg7+ {[%clk 00:15:42]} {[%emt 00:00:10]}
41. Rg2 {[%clk 00:48:56]} {[%emt 00:00:18]} Qd4+ {[%clk 00:15:21]} {[%emt
00:00:53]} 42. Kf1 {[%clk 00:47:57]} {[%emt 00:01:29]} Ra7 {[%clk 00:15:23]}
{[%emt 00:00:28]} 43. Rg4 {[%clk 00:46:12]} {[%emt 00:02:14]} Ra1+ {[%clk
00:14:14]} {[%emt 00:01:40]} 44. Ke2 {[%clk 00:45:42]} {[%emt 00:00:59]} Qe5+
{[%clk 00:14:16]} {[%emt 00:00:28]} 0-1

[Event "Mistrovství Čech mládeže 2023 - HD16"]
[Site "Harrachov, Czech Republic"]
[Date "2023.10.24"]
[Round "5.18"]
[White "Hrubý, Filip"]
[Black "Janoušková, Adéla"]
[Result "1/2-1/2"]
[TimeControl "90m + 30s"]
[WhiteElo "1386"]
[BlackElo "1638"]

1. e4 {[%clk 01:30:57]} {[%emt 00:00:02]} c5 {[%clk 01:30:56]} {[%emt
00:00:05]} 2. Nf3 {[%clk 01:31:18]} {[%emt 00:00:08]} d6 {[%clk 01:31:22]}
{[%emt 00:00:05]} 3. d4 {[%clk 01:30:43]} {[%emt 00:01:04]} cxd4 {[%clk
01:31:22]} {[%emt 00:00:31]} 4. Nxd4 {[%clk 01:31:06]} {[%emt 00:00:06]} g6
{[%clk 01:31:03]} {[%emt 00:00:49]} 5. Nc3 {[%clk 01:29:51]} {[%emt 00:01:45]}
Bg7 {[%clk 01:31:15]} {[%emt 00:00:18]} 6. Be3 {[%clk 01:29:49]} {[%emt
00:00:32]} Nf6 {[%clk 01:31:29]} {[%emt 00:00:17]} 7. Qd2 {[%clk 01:27:46]}
{[%emt 00:02:32]} O-O {[%clk 01:29:57]} {[%emt 00:02:01]} 8. O-O-O {[%clk
01:27:51]} {[%emt 00:00:26]} Ng4 {[%clk 01:13:21]} {[%emt 00:17:05]} 9. f3
{[%clk 01:23:09]} {[%emt 00:05:12]} Nxe3 {[%clk 01:08:04]} {[%emt 00:05:48]} 10.
Qxe3 {[%clk 01:23:27]} {[%emt 00:00:12]} Nc6 {[%clk 01:07:17]} {[%emt
00:01:17]} 11. Nb3 {[%clk 01:17:29]} {[%emt 00:06:27]} Be6 {[%clk 01:05:28]}
{[%emt 00:02:20]} 12. Nd5 {[%clk 01:06:02]} {[%emt 00:11:56]} Rc8 {[%clk
00:59:47]} {[%emt 00:06:12]} 13. Kb1 {[%clk 01:03:55]} {[%emt 00:02:36]} a6
{[%clk 00:42:44]} {[%emt 00:17:34]} 14. h4 {[%clk 00:51:45]} {[%emt 00:12:39]}
b5 {[%clk 00:38:22]} {[%emt 00:04:53]} 15. a3 {[%clk 00:49:49]} {[%emt
00:02:26]} Ne5 {[%clk 00:36:02]} {[%emt 00:02:50]} 16. Nd4 {[%clk 00:44:33]}
{[%emt 00:05:46]} Bxd5 {[%clk 00:35:01]} {[%emt 00:01:30]} 17. exd5 {[%clk
00:44:53]} {[%emt 00:00:10]} Qb6 {[%clk 00:29:08]} {[%emt 00:06:23]} 18. Nf5
{[%clk 00:36:04]} {[%emt 00:09:19]} Qc7 {[%clk 00:28:05]} {[%emt 00:01:34]} 19.
Nd4 {[%clk 00:35:49]} {[%emt 00:00:43]} Nc4 {[%clk 00:26:14]} {[%emt 00:02:23]}
20. Bxc4 {[%clk 00:34:57]} {[%emt 00:01:22]} bxc4 {[%clk 00:26:30]} {[%emt
00:00:15]} 21. c3 {[%clk 00:23:53]} {[%emt 00:11:33]} Qb7 {[%clk 00:25:14]}
{[%emt 00:01:46]} 22. Ne2 {[%clk 00:20:45]} {[%emt 00:03:36]} Rc5 {[%clk
00:24:17]} {[%emt 00:01:29]} 23. Rd2 {[%clk 00:13:37]} {[%emt 00:07:38]} Rb8
{[%clk 00:23:41]} {[%emt 00:01:06]} 24. Rc1 {[%clk 00:11:40]} {[%emt 00:02:25]}
Rxd5 {[%clk 00:23:17]} {[%emt 00:00:55]} 25. Rcc2 {[%clk 00:10:37]} {[%emt
00:01:33]} Ra5 {[%clk 00:22:53]} {[%emt 00:00:55]} 26. Kc1 {[%clk 00:06:56]}
{[%emt 00:04:11]} Rxa3 {[%clk 00:22:21]} {[%emt 00:01:02]} 27. Kd1 {[%clk
00:06:04]} {[%emt 00:01:21]} Ra1+ {[%clk 00:21:32]} {[%emt 00:01:20]} 28. Rc1
{[%clk 00:05:37]} {[%emt 00:00:57]} Ra5 {[%clk 00:20:36]} {[%emt 00:01:25]} 29.
Nd4 {[%clk 00:04:49]} {[%emt 00:01:18]} Re5 {[%clk 00:20:10]} {[%emt 00:00:57]}
30. Qf2 {[%clk 00:04:45]} {[%emt 00:00:33]} Bh6 {[%clk 00:18:34]} {[%emt
00:02:06]} 31. f4 {[%clk 00:04:29]} {[%emt 00:00:47]} Re4 {[%clk 00:16:06]}
{[%emt 00:02:58]} 32. g3 {[%clk 00:04:04]} {[%emt 00:00:54]} Bg7 {[%clk
00:14:40]} {[%emt 00:01:57]} 33. Nf3 {[%clk 00:03:11]} {[%emt 00:01:22]} Qb6
{[%clk 00:11:35]} {[%emt 00:03:35]} 34. Qxb6 {[%clk 00:01:54]} {[%emt
00:01:48]} Rxb6 {[%clk 00:12:04]} 35. Rcc2 {[%clk 00:01:09]} {[%emt 00:01:14]}
Re3 {[%clk 00:12:00]} {[%emt 00:00:34]} 36. Rf2 {[%clk 00:01:33]} {[%emt
00:00:06]} Rd3+ {[%clk 00:11:27]} {[%emt 00:01:04]} 37. Kc1 {[%clk 00:01:18]}
{[%emt 00:00:44]} Rb5 {[%clk 00:10:54]} {[%emt 00:01:04]} 38. Rcd2 {[%clk
00:01:16]} {[%emt 00:00:30]} Rbd5 {[%clk 00:09:32]} {[%emt 00:01:54]} 39. Ne1
{[%clk 00:01:27]} {[%emt 00:00:19]} Rxd2 {[%clk 00:09:41]} {[%emt 00:00:20]} 40.
Rxd2 {[%clk 00:01:55]} {[%emt 00:00:02]} Rxd2 {[%clk 00:09:55]} {[%emt
00:00:17]} 41. Kxd2 {[%clk 00:02:24]} {[%emt 00:00:01]} Kf8 {[%clk 00:07:36]}
{[%emt 00:02:48]} 42. Nc2 {[%clk 00:02:41]} {[%emt 00:00:14]} a5 {[%clk
00:07:04]} {[%emt 00:01:02]} 43. Ne3 {[%clk 00:02:56]} {[%emt 00:00:14]} Ke8
{[%clk 00:01:28]} {[%emt 00:06:07]} 44. Nxc4 {[%clk 00:03:06]} {[%emt
00:00:19]} a4 {[%clk 00:01:53]} {[%emt 00:00:05]} 45. Nb6 {[%clk 00:03:10]}
{[%emt 00:00:26]} a3 {[%clk 00:02:08]} {[%emt 00:00:15]} 46. bxa3 {[%clk
00:03:36]} {[%emt 00:00:04]} Kd8 {[%clk 00:02:29]} {[%emt 00:00:09]} 47. Kd3
{[%clk 00:03:28]} {[%emt 00:00:38]} e6 {[%clk 00:02:33]} {[%emt 00:00:27]} 48.
Nc4 {[%clk 00:02:50]} {[%emt 00:01:08]} Kc7 {[%clk 00:02:16]} {[%emt 00:00:47]}
49. Nd2 {[%clk 00:02:01]} {[%emt 00:01:18]} Kb6 {[%clk 00:02:13]} {[%emt
00:00:32]} 50. Nc4+ {[%clk 00:01:45]} {[%emt 00:00:47]} Kc5 {[%clk 00:02:18]}
{[%emt 00:00:25]} 51. a4 {[%clk 00:01:13]} {[%emt 00:01:02]} d5 {[%clk
00:02:12]} {[%emt 00:00:37]} 52. Na5 {[%clk 00:00:50]} {[%emt 00:00:52]} Kb6
{[%clk 00:00:39]} {[%emt 00:02:04]} 53. Nb3 {[%clk 00:01:07]} {[%emt 00:00:12]}
e5 {[%clk 00:00:38]} {[%emt 00:00:32]} 54. fxe5 {[%clk 00:00:46]} {[%emt
00:00:52]} Bxe5 {[%clk 00:01:06]} {[%emt 00:00:02]} 55. g4 {[%clk 00:01:00]}
{[%emt 00:00:14]} f5 {[%clk 00:00:40]} {[%emt 00:00:56]} 56. gxf5 {[%clk
00:00:59]} {[%emt 00:00:32]} gxf5 {[%clk 00:01:09]} 57. c4 {[%clk 00:00:44]}
{[%emt 00:00:45]} dxc4+ {[%clk 00:01:20]} {[%emt 00:00:19]} 58. Kxc4 {[%clk
00:01:05]} {[%emt 00:00:09]} f4 {[%clk 00:01:41]} {[%emt 00:00:08]} 59. Kd5
{[%clk 00:01:05]} {[%emt 00:00:29]} Bf6 {[%clk 00:01:30]} {[%emt 00:00:42]} 60.
Ke4 {[%clk 00:01:16]} {[%emt 00:00:19]} 1/2-1/2

[Event "Mistrovství Čech mládeže 2023 - HD16"]
[Site "Harrachov, Czech Republic"]
[Date "2023.10.24"]
[Round "5.19"]
[White "Jun, Robert"]
[Black "Dudková, Josefína"]
[Result "0-1"]
[TimeControl "90m + 30s"]
[WhiteElo "1554"]
[BlackElo "1587"]

1. e4 {[%clk 01:30:58]} c5 {[%clk 01:30:54]} {[%emt 00:00:07]} 2. c3 {[%clk
01:31:23]} {[%emt 00:00:05]} Nc6 {[%clk 01:30:49]} {[%emt 00:00:36]} 3. d4
{[%clk 01:31:48]} {[%emt 00:00:04]} cxd4 {[%clk 01:26:33]} {[%emt 00:04:46]} 4.
cxd4 {[%clk 01:32:11]} {[%emt 00:00:06]} d5 {[%clk 01:23:36]} {[%emt 00:03:28]}
5. e5 {[%clk 01:28:49]} {[%emt 00:03:52]} Bf5 {[%clk 01:21:16]} {[%emt
00:02:49]} 6. Bb5 {[%clk 01:27:01]} {[%emt 00:02:18]} e6 {[%clk 01:15:40]}
{[%emt 00:06:06]} 7. Ne2 {[%clk 01:25:25]} {[%emt 00:02:06]} Qa5+ {[%clk
01:08:53]} {[%emt 00:07:18]} 8. Nbc3 {[%clk 01:23:21]} {[%emt 00:02:34]} Bb4
{[%clk 01:04:19]} {[%emt 00:05:04]} 9. O-O {[%clk 01:17:47]} {[%emt 00:06:03]}
Nge7 {[%clk 01:00:01]} {[%emt 00:04:49]} 10. a3 {[%clk 01:15:30]} {[%emt
00:02:48]} Bxc3 {[%clk 00:59:10]} {[%emt 00:01:20]} 11. Nxc3 {[%clk 01:15:54]}
{[%emt 00:00:06]} a6 {[%clk 00:57:11]} {[%emt 00:02:29]} 12. Be2 {[%clk
01:14:31]} {[%emt 00:01:52]} b5 {[%clk 00:54:14]} {[%emt 00:03:28]} 13. Be3
{[%clk 01:10:26]} {[%emt 00:04:34]} O-O {[%clk 00:51:58]} {[%emt 00:02:47]} 14.
b4 {[%clk 01:10:26]} {[%emt 00:00:30]} Qb6 {[%clk 00:49:51]} {[%emt 00:02:36]}
15. h4 {[%clk 01:08:24]} {[%emt 00:02:31]} h6 {[%clk 00:46:30]} {[%emt
00:03:52]} 16. Rc1 {[%clk 01:03:20]} {[%emt 00:05:34]} Bh7 {[%clk 00:40:03]}
{[%emt 00:06:57]} 17. g4 {[%clk 01:00:52]} {[%emt 00:02:59]} f5 {[%clk
00:37:32]} {[%emt 00:03:01]} 18. f4 {[%clk 00:55:50]} {[%emt 00:05:32]} fxg4
{[%clk 00:30:02]} {[%emt 00:08:00]} 19. Bxg4 {[%clk 00:56:13]} {[%emt
00:00:06]} Bf5 {[%clk 00:26:41]} {[%emt 00:03:51]} 20. Bxf5 {[%clk 00:55:27]}
{[%emt 00:01:16]} Nxf5 {[%clk 00:26:48]} {[%emt 00:00:24]} 21. Bf2 {[%clk
00:54:44]} {[%emt 00:01:13]} Ncxd4 {[%clk 00:20:55]} {[%emt 00:06:23]} 22. Kh1
{[%clk 00:46:39]} {[%emt 00:08:34]} Rac8 {[%clk 00:19:50]} {[%emt 00:01:35]} 23.
Rg1 {[%clk 00:46:01]} {[%emt 00:01:08]} Rc4 {[%clk 00:18:29]} {[%emt 00:01:52]}
24. Rg6 {[%clk 00:45:59]} {[%emt 00:00:31]} Rfc8 {[%clk 00:15:30]} {[%emt
00:03:29]} 25. Qd3 {[%clk 00:43:02]} {[%emt 00:03:27]} Qc6 {[%clk 00:15:07]}
{[%emt 00:00:53]} 26. Be1 {[%clk 00:42:30]} {[%emt 00:01:02]} Nb3 {[%clk
00:15:00]} {[%emt 00:00:37]} 27. Rc2 {[%clk 00:40:04]} {[%emt 00:02:56]} d4+
{[%clk 00:15:05]} {[%emt 00:00:25]} 28. Rcg2 {[%clk 00:40:17]} {[%emt
00:00:17]} dxc3 {[%clk 00:07:37]} {[%emt 00:07:58]} 29. Kh2 {[%clk 00:35:32]}
{[%emt 00:05:15]} c2 {[%clk 00:04:02]} {[%emt 00:04:06]} 30. h5 {[%clk
00:32:31]} {[%emt 00:03:30]} Qxg2+ {[%clk 00:01:49]} {[%emt 00:02:44]} 31. Rxg2
{[%clk 00:32:05]} {[%emt 00:00:55]} c1=Q {[%clk 00:01:36]} {[%emt 00:00:44]} 32.
Qxb3 {[%clk 00:31:20]} {[%emt 00:01:15]} Qxf4+ {[%clk 00:02:00]} {[%emt
00:00:06]} 33. Kg1 {[%clk 00:31:39]} {[%emt 00:00:10]} Ne3 {[%clk 00:01:44]}
{[%emt 00:00:46]} 0-1